Workbook

Sheet Deckblatt
B5: Kapilární rohože výpočet výkonu:
D8: Chladicí výkon stropního systému
D9: Topný výkon stropního systému
D10: Temperování stavebního dílu
D11: Chladicí a topný výkon podlahového systému
D12: Chladicí a topný výkon stěnového systému
D13: Kapiláry v otevřené stropní konstrukci
B21: Výpočetní program G-TERM
B22: Verze A4.16
B23: Pozor: výpočetní program G-TERM je chráněn autorskými právy.
B24: Neoprávněnou distrubuci tohoto programu nebo jeho částí je možné pokutovat.

Sheet Kühldecke
B2: Chladicí výkon kapilárních rohoží ve stropním systému | J2: 13 | K2: Index | L2: Kenn. | N2: Ausführung | O2: C | P2: n
J4: =VLOOKUP(J2,K5:P25,5) -> 6.693
J5: =VLOOKUP(J2,K5:P24,6) -> 1.096 | K5: 1 | L5: K.S15 | M5: Omítnutý strop, betonová deska s rohoží K.S15 a omítkou maxit ip22 | N5: Instalace v omítnuté betonové desce, rohož K.S15 a omítka maxit ip22, tloušťka omítky 15mm, 5mm překrytí kapilární rohože, viz technické pokyny TI-M03 | O5: 7.361 | P5: 1.08167
B6: I | C6: Pokojová teplota | D6: °C | E6: 27 | G6: Modré hodnoty lze měnit ! | K6: 2 | L6: K.S15 | M6: Omítnutý strop, SDK deska s rohoží K.S15 a omítkou Knauf MP75 | N6: Instalace v omítnutém stropě pod zavěšeným SDK podhledem s rohoží K.S15 a omítkou Knauf MP75, 10mm tloušťka omítky, 5mm překrytí kapilární rohože, viz technické pokyny TI-M03 | O6: 7.912 | P6: 1.0905
K7: 3 | L7: P.VS20 | M7: Omítnutý strop, betonová deska s rohoží P.VS20 a omítkou maxit ip22 | N7: Omítnutý strop, betonová deska, rohož P.VS20 v omítce maxit ip22, tloušťka omítky 15mm, 6,9mm překrytí kapilární rohože, viz technické pokyny TI-M03 | O7: 6.39 | P7: 1.07237
B8: II | C8: Teplota přívod | D8: °C | E8: 16 | K8: 4 | L8: P.VS20 | M8: Omítnutý strop, SDK deska s rohoží P.VS20 a omítkou Knauf MP75 | N8: Instalace v omítnutém stropě pod zavěšenou SDK deskou, s rohoží P.VS20 v omítce Knauf MP75 , 10mm tloušťka omítky, 5mm překrytí kapilární rohože, viz technické pokyny TI-M03; EN14240 | O8: 7.308 | P8: 1.0903
K9: 5 | L9: K.G10 | M9: Omítnutý strop, SDK deska s rohoží K.G10 a BASWA Akustickým systémem | N9: Akustikputzdecke unter abgehängter Gipskartondecke, K.G10, BASWAphon-Akustikplatte, Putzüberdeckung 5mm, rückseitige Wärmedämmung | O9: 8.1232 | P9: 1.0911
B10: III | C10: Teplota zpátečka | D10: °C | E10: 18 | K10: 6 | L10: K.S15 | M10: Omítnutý strop, SDK deska s rohoží K.S15 a akustickou omítkou Sto | N10: Instalace ve stropě omítnutém akustickou omítkou, pod zavěšeným SDK, s rohoží K.S15 v omítce Sto Akustikputz 12-14mm tloušťka, 8mm překrytí rohože, viz technické návody TI-M03 | O10: 3.39 | P10: 1.15
K11: 7 | L11: K.GM10 | M11: Kovová stropní kazeta s rohoží K.GM10, rohož nalepená, včetně izolace | N11: Kovová kazeta značka Fural, 0,7mm silná, s akustickým vliesem, 0,7/1% děrování, rohož nalepená do desky, izolace, viz technické návody TI-M04 | O11: 6.8905 | P11: 1.0811
B12: IV | C12: Střední teplota vody | D12: °C | E12: =(E10+E8)/2 -> 17 | K12: 8 | L12: K.UM10 | M12: Kovová stropní kazeta s rohoží K.UM10, rohož vložená, včetně izolace | N12: Kovová kazeta značka Clestra Hauserman, bez akustického vliesu, 0,8mm silná, 1,5/11% děrování; rohož vložená do desky, včetně izolace, viz technické návody TI-M04 | O12: 7.0256 | P12: 1.0838
K13: 9 | L13: K.U10 | M13: Kovová stropní kazeta s rohoží K.U10, rohož nalepená, bez izolace | N13: Kovová kazeta značky Dipling, 0,8mm silná, s akustickým vliesem, 2,7/18% děrování, rohož nalepená, bez izolace, viz technické pokyny TI-M04 | O13: 4.99 | P13: 1.19
B14: V | C14: Typ instalace | K14: 10 | L14: K.GS10 | M14: Kovová stropní kazeta s rohoží K.GS10, rohož nalepená, bez izolace | N14: Kovová kazeta značky Van Geel, 0,8mm silná, s akustickým vliesem, 2,2/12% děrování, rohož nalepená, bez izolace, viz technické pokyny TI-M04 | O14: 5.84 | P14: 1.1
K15: 11 | L15: B.MV10 | M15: Kovová stropní kazeta s rohoží B.MV10 | N15: Kovová kazeta, 0,8mm silná, s akustickým vliesem, 2,2/18% děrování, rohož B.MV10 vložená, viz technické pokyny TI-M04 | O15: 5.47 | P15: 1.09
C16: Popis : | K16: 12 | L16: GG10 | M16: Kovová stropní kazeta Sandwich s rohoží K.U10 a plechovým krytem | N16: Kovová kazeta značka Clestra Hauserman jako sendvič, 0,8mm silná, v akustickým vliesem, 1,5/11% děrování, rohož mezi minerální vatou a plechem, plechový kryt, viz technické pokyny TI-M04 | O16: 5.849 | P16: 1.105
C17: =VLOOKUP(J2,K5:P25,4) -> Kovová kazeta značka VanGeel als sendvič, 0,6mm silná, bez akustického vliesu, děrování 1,6/25%, rohož mezi minerální vatou a plechem, GK kryt, viz technické pokyny TI-M04 | K17: 13 | L17: U10 | M17: Kovová stropní kazeta s rohoží K.UM10 a GK-krytem | N17: Kovová kazeta značka VanGeel als sendvič, 0,6mm silná, bez akustického vliesu, děrování 1,6/25%, rohož mezi minerální vatou a plechem, GK kryt, viz technické pokyny TI-M04 | O17: 6.693 | P17: 1.096
K18: 14 | L18: W12,5 | M18: Kovová stropní kazeta s Micropour povrchovou úpravou, bez izolace, s aktivovanou kapilární rohoží | N18: Kovová kazeta Micropur, značka Wilhelmi, 0,6mm silná, děrování 2,5/16,6%, rohož nalepená, bez izolace, viz technické pokyny TI-M04 | O18: 6.147 | P18: 1.106
B19: VI | C19: Měrný chladicí výkon | D19: W/m2 | E19: =IF(E6>E12,J4*(E6-(E10+E8)/2)^J5,IF(E6=E12,0,"Bitte Temperaturen überprüfen")) -> 83.48737861 | K19: 15 | L19: K.S10 | M19: Nad SDK Rigips "Climaifit" s položenou rohoží K.S10, bez izolace | N19: SDK deska (RIGIPS Climafit) s grafitovým jádrem a tepelnou vodivostí λ = 0,516 W/(m*K),10 mm tloušťka, přilepená oboustrannou lepicí páskou, bez izolace | O19: 6.869 | P19: 1.045
K20: 16 | L20: K.GK10 | M20: Nad SDK Knauf Thermoboard a položenou rohoží K.GK10 | N20: SDK deska Knauf Thermoboard 10mm, neděrovaný, izolace 30mm, položená rohož K.GK10, viz technické pokyny TI-M18 | O20: 5.18 | P20: 1.08
B21: VII | C21: Měrný průtok vody | D21: kg/(m2h) | E21: =E19*0.861/(E10-E8) -> 35.94131649 | K21: 17 | L21: K.GK10 | M21: Nad SDK Knauf Thermoboard děrovaný s položenou rohoží K.GK10 | N21: SDK deska Knauf Thermoplatte 10mm, děrovaná, nahoře akustický vlies, izolace nad rohoží 30 mm, s položenou rohoží K.GK10, viz technické pokyny TI-M18 | O21: 5.22 | P21: 1.08
K22: 18 | L22: K.GK10 | M22: Nad SDK Danogipsakustiksystem s položenou rohoží K.GK10 | N22: SDK systém Danogips-Akustiksystem, 12,5mm, děrovaný, nahoře a dole akustický vlies, izolace 30mm, položená rohož K.GK10, viz technické pokyny TI-M18+24 | O22: 4.33 | P22: 1.08
K23: 19 | L23: B.GK12 | M23: BEKA deska se zabudovanou kapilárou B.GK12 | N23: BEKA element se zabudovanou kapilární rohoží, SDK deska 12,5mm a extrudovaný polystyren 30mm silný, s rohoží K.GG10, viz technické pokyny TI-M10 | O23: 5.17 | P23: 1.1
K24: 20 | L24: K.GG10 | M24: Nad SDK s rohoží K.GG10 a teplonosnou pastou | N24: SDK deska 12,5mm, s nalepenou rohoží K.GG10 a teplonosnou pastou V.WLP.1, bez izolace, viz technické pokyny TI-M05 | O24: 5.85 | P24: 1.095
K25: 21 | L25: K.S15 | M25: K.S15 mezi dvěma SDK deskami | N25: SDK sendvič, rohož K.S15 mezi dvěma SDK deskami 12,5mm, nad rohoží izolace 3 mm silná, viz technické pokyny TI-M11 | O25: 5.14 | P25: 1.08

Sheet Deckenheizung
B2: Topný výkon kapilárních rohoží ve stropním systému | J2: 3 | K2: Index | L2: Kenn. | N2: Ausführung | O2: C | P2: n
J4: =VLOOKUP(J2,K5:P14,5) -> 5.039
J5: =VLOOKUP(J2,K5:P23,6) -> 1.099 | K5: 1 | L5: K.S15 | M5: Omítnutý strop, betonová deska s rohoží K.S15 a omítkou maxit ip22 | N5: Instalace v omítnuté betonové desce, rohož K.S15 a omítka maxit ip22, tloušťka omítky 15mm, 5mm překrytí kapilární rohože, viz technické pokyny TI-M03 | O5: 5.3 | P5: 1
B6: I | C6: Pokojová teplota | D6: °C | E6: 21 | K6: 2 | L6: K.S15 | M6: Omítnutý strop, SDK deska s rohoží K.S15 a omítkou Knauf MP75 | N6: Instalace v omítnutém stropě pod zavěšeným SDK podhledem s rohoží K.S15 a omítkou Knauf MP75, 10mm tloušťka omítky, 5mm překrytí kapilární rohože, viz technické pokyny TI-M03 | O6: 5.755 | P6: 1.085
K7: 3 | L7: P.VS20 | M7: Omítnutý strop, SDK deska s rohoží P.VS20 a omítkou Knauf MP75 | N7: Instalace v omítnutém stropě pod zavěšenou SDK deskou, s rohoží P.VS20 v omítce Knauf MP75 , 10mm tloušťka omítky, 5mm překrytí kapilární rohože, viz technické pokyny TI-M03; EN14240 | O7: 5.039 | P7: 1.099
B8: II | C8: Teplota přívod | D8: °C | E8: 35 | K8: 4 | L8: K.UM10 | M8: Kovová stropní kazeta s rohoží K.UM10, rohož vložená, včetně izolace | N8: Kovová kazeta značka Clestra Hauserman, bez akustického vliesu, 0,8mm silná, 1,5/11% děrování; rohož vložená do desky, včetně izolace, viz technické návody TI-M04 | O8: 5.041 | P8: 1.086
K9: 5 | L9: K.GS10 | M9: Kovová stropní kazeta s rohoží K.GS10, rohož nalepená, bez izolace | N9: Kovová kazeta značky Van Geel, 0,8mm silná, s akustickým vliesem, 2,2/12% děrování, rohož nalepená, bez izolace, viz technické pokyny TI-M04 | O9: 4.83 | P9: 1.06
B10: III | C10: Teplota zpátečka | D10: °C | E10: 32 | G10: Červené hodnoty lze měnit ! | K10: 6 | L10: B.MV10 | M10: Kovová stropní kazeta s rohoží B.MV10 | N10: Kovová kazeta, 0,8mm silná, s akustickým vliesem, 2,2/18% děrování, rohož B.MV10 vložená, viz technické pokyny TI-M04 | O10: 4.4 | P10: 1.06
K11: 7 | L11: K.S10 | M11: Nad SDK Rigips "Climaifit" s položenou rohoží K.S10, bez izolace | N11: SDK deska (RIGIPS Climafit) s grafitovým jádrem a tepelnou vodivostí λ = 0,516 W/(m*K),10 mm tloušťka, přilepená oboustrannou lepicí páskou, bez izolace | O11: 5.706 | P11: 1.03
B12: IV | C12: Střední teplota vody | D12: °C | E12: =(E10+E8)/2 -> 33.5 | K12: 8 | L12: K.GK10 | M12: Nad SDK Knauf Thermoboard a položenou rohoží K.GK10 | N12: SDK deska Knauf Thermoboard 10mm, neděrovaný, izolace 30mm, položená rohož K.GK10, viz technické pokyny TI-M18 | O12: 3.94 | P12: 1.09
K13: 9 | L13: K.GK10 | M13: Nad SDK Knauf Thermoboard děrovaný s položenou rohoží K.GK10 | N13: SDK deska Knauf Thermoplatte 10mm, děrovaná, nahoře akustický vlies, izolace nad rohoží 30 mm, s položenou rohoží K.GK10, viz technické pokyny TI-M18 | O13: 3.83 | P13: 1.09
B14: V | C14: Typ instalace | K14: 10 | L14: K.GK10 | M14: Nad SDK Danogipsakustiksystem s položenou rohoží K.GK10 | N14: SDK systém Danogips-Akustiksystem, 12,5mm, děrovaný, nahoře a dole akustický vlies, izolace 30mm, položená rohož K.GK10, viz technické pokyny TI-M18+24 | O14: 3.39 | P14: 1.09
C16: Popis :
C17: =VLOOKUP(J2,K5:P14,4) -> Instalace v omítnutém stropě pod zavěšenou SDK deskou, s rohoží P.VS20 v omítce Knauf MP75 , 10mm tloušťka omítky, 5mm překrytí kapilární rohože, viz technické pokyny TI-M03; EN14240
B19: VI | C19: Měrný topný výkon | D19: W/m2 | E19: =IF(E6<E12,J4*(((E10+E8)/2)-E6)^J5,"Bitte Temperaturen überprüfen") -> 80.88136325
B21: VII | C21: Měrný průtok vody | D21: kg/(m2h) | E21: =E19*0.861/(E8-E10) -> 23.21295125

Sheet Bauteiltemperierung
B2: Temperování stavebních dílů s rohoží typu P.VS20/30 oder P.VG20/30 | J2: 1 | K2: Index | L2: Kenn. | N2: Ausführung | O2: C | P2: n
J4: =VLOOKUP(J2,K5:P7,5) -> 7.82
J5: =VLOOKUP(J2,K5:P7,6) -> 1.08645 | K5: 1 | L5: P.VS20 | M5: chlazení s rohoží P.VS20 | N5: oberflächennahe Bauteiltemperierung Kühlen mit P.VS20/P.VG20 , 5mm Überdeckung mit Beton, siehe Technische Hinweise TI-M | O5: 7.82 | P5: 1.08645 | Q5: =O5*($E$6-$E$12)^P5 -> 95.42381008
B6: I | C6: Pokojová teplota | D6: °C | E6: 27 | K6: 2 | L6: P.VS30 | M6: chlazení s rohoží P.VS30 | N6: oberflächennahe Bauteiltemperierung Kühlen mit P.VS30/P.VG30 , 5mm Überdeckung mit Beton, siehe Technische Hinweise TI-M | O6: 7.417 | P6: 1.08157 | Q6: =O6*($E$6-$E$12)^P6 -> 89.49489833
G7: Oranžové hodnoty lze měnit ! | K7: 3 | L7: P.VS30 | M7: ohřev s rohoží P.VS30 | N7: oberflächennahe Bauteiltemperierung Heizen mit P.VS30/P.VG30 , 5mm Überdeckung mit Beton, siehe Technische Hinweise TI-M | O7: 5.84 | P7: 1.1 | Q7: =O7*($E$12-$E$6)^P7 -> 
B8: II | C8: Teplota přívod | D8: °C | E8: 16
B10: III | C10: Teplota zpátečka | D10: °C | E10: 18 | J10: =IF(E6>E12,Q5,"Bitte Temperaturen überprüfen") -> 95.42381008
J11: =IF(E6>E12,(Q5*0.861/(E10-E8)),"Bitte Temperaturen überprüfen") -> 41.07995024
B12: IV | C12: Střední teplota vody | D12: °C | E12: =(E10+E8)/2 -> 17 | J12: =IF(E6>E12,Q6,"Bitte Temperaturen überprüfen") -> 89.49489833
J13: =IF(E6>E12,(Q6*0.861/(E10-E8)),"Bitte Temperaturen überprüfen") -> 38.52755373
B14: V | C14: Typ instalace KR | J14: =IF(E6<E12,Q7,"Bitte Temperaturen überprüfen") -> Bitte Temperaturen überprüfen
J15: =IF(E6<E12,(Q7*0.861/(E8-E10)),"Bitte Temperaturen überprüfen") -> Bitte Temperaturen überprüfen
C16: Popis :
C17: =VLOOKUP(J2,K5:P22,4) -> oberflächennahe Bauteiltemperierung Kühlen mit P.VS20/P.VG20 , 5mm Überdeckung mit Beton, siehe Technische Hinweise TI-M
B19: VI | C19: Chladicí/topný výkon | D19: W/m2 | E19: =IF(J2=1,J10,IF(J2=2,J12,J14)) -> 95.42381008
E20: =IF(J2=1,J11,IF(J2=2,J13,J15)) -> 41.07995024
B21: VII | C21: Průtok vody | D21: kg/(m2h)

Sheet Fußbodenheizung und -kühlung
B2: Podlahové topení/chlazení s kapilární rohoží P.FS20 oder P.VS20/P.VS30 | J2: 8 | K2: Index | L2: Kenn. | N2: Ausführung | O2: C | P2: n
J4: =VLOOKUP(J2,K5:P22,5) -> 6.18
J5: =VLOOKUP(J2,K5:P22,6) -> 1.067 | K5: 1 | L5: P.VS20 | M5: Tenkovrstvé podlahové topení na betonovém potěru + dlažba | N5: Tenkovrstvé podlahové topení na tepelně izolované betové desce, P.FS20, 7,5mm překrytí samonivelační stěrkou Ardalan, 13mm dlažba, viz technické informace TI-M12 | O5: 7.61 | P5: 1.033
B6: I | C6: Pokojová teplota | D6: °C | E6: 21 | K6: 2 | L6: P.VS20 | M6: Tenkovrstvé podlahové topení na dřevěném podkladu + dlažba | N6: Tenkovrstvé podlahové topení na podlaze z prken, P.FS20, 7,5mm překrytí samonivelační stěrkou Ardalan. 13mm dlažba, viz technické informace TI-M12 | O6: 7.6 | P6: 1.033
J7: =J8 -> 49.28424227 | K7: 3 | L7: P.VS20 | M7: Tenkovrstvé podlahové topení na betonovém potěru + parkety | N7: Tenkovrstvé podlahové topení na tepelně izolované betové desce, P.FS20, 7,5mm překrytí samonivelační stěrkou Ardalan, 15mm parkety z tvrdého dřeva, viz technické informace TI-M12 | O7: 4.71 | P7: 1.051
B8: II | C8: Teplota přívod | D8: °C | E8: 30 | J8: =IF(E6<E12,J4*(((E10+E8))/2-E6)^J5,IF(E6=E12,0,"Bitte Temperaturen überprüfen !")) -> 49.28424227 | K8: 4 | L8: P.VS30 | M8: Podlahové topení v anhydritovém potěru + dlažba | N8: Tenkovrstvé podlahové topení v anhydritovém potěru tl. 45mm na tepelné izolaci, P.VS30, 15mm překrytí anhydritem, 13 mm dlažba | O8: 6.22 | P8: 1.068
J9: =J10 -> Bitte Temperaturen überprüfen | K9: 5 | L9: P.VS30 | M9: Podlahové topení v cementovém potěru + dlažba | N9: Tenkovrstvé podlahové topení v cementovém potěru tl. 45mm na tepelné izolaci, P.VS30, 15mm překrytí cementovým potěrem, 13 mm dlažba | O9: 6.32 | P9: 1.069
B10: III | C10: Teplota zpátečka | D10: °C | E10: 26 | G10: Oranžové hodnoty lze měnit ! | J10: =IF(E6>E12,J4*(E6-(E10+E8)/2)^J5,IF(E6=E12,0,"Bitte Temperaturen überprüfen")) -> Bitte Temperaturen überprüfen | K10: 6 | L10: P.VS30 | M10: Podlahové topení v anhydritovém potěru + koberec | N10: Tenkovrstvé podlahové topení v anhydritovém potěru tl. 45mm na tepelné izolaci, P.VS30, 15mm překrytí anhydritem, 4 mm koberec | O10: 4.19 | P10: 1.045
K11: 7 | L11: P.VS30 | M11: Podlahové topení v cementovém potěru + koberec | N11: Tenkovrstvé podlahové topení v cementovém potěru tl. 45mm na tepelné izolaci, P.VS30, 15mm překrytí cementovým potěrem, 4 mm koberec | O11: 4.24 | P11: 1.046
B12: IV | C12: Střední teplota vody | D12: °C | E12: =(E10+E8)/2 -> 28 | K12: 8 | L12: P.VS30 | M12: Podlahové topení v anhydritovém potěru + linoleum | N12: Tenkovrstvé podlahové topení v anhydritovém potěru tl. 45mm na tepelné izolaci, P.VS30, 15mm překrytí anhydritem, 2,5 mm linoleum | O12: 6.18 | P12: 1.067
K13: 9 | L13: P.VS30 | M13: Podlahové topení v cementovém potěru + linoleum | N13: Tenkovrstvé podlahové topení v cementovém potěru tl. 45mm na tepelné izolaci, P.VS30, 15mm překrytí cementovým potěrem, 2,5 mm linoleum | O13: 6.29 | P13: 1.068
B14: V | C14: Typ instalace | K14: 10 | L14: P.VS20 | M14: Chadicí podlaha na betonovém potěru + dlažba | N14: Tenkovrstvá chadicí podlaha na tepelně izolované betové desce, P.FS20, 7,5mm překrytí samonivelační stěrkou Ardalan, 6,7 W/m2K, 13m mm dlažba, viz technické informace TI-M12 | O14: 5.56 | P14: 1
K15: 11 | L15: P.VS20 | M15: Chadicí podlaha na betonovém potěru + koberec | N15: Tenkovrstvá chadicí podlaha na tepelně izolované betové desce, P.FS20, 7,5mm překrytí samonivelační stěrkou Ardalan, 6,7 W/m2K, 4 mm koberec, viz technické informace TI-M12 | O15: 3.95 | P15: 1
C16: Popis : | K16: 12 | L16: P.VS20 | M16: Chadicí podlaha na betonovém potěru + linoleum | N16: Tenkovrstvá chadicí podlaha na tepelně izolované betové desce, P.FS20, 7,5mm překrytí samonivelační stěrkou Ardalan, 6,7 W/m2K, 2,5 mm linoleum, viz technické informace TI-M12 | O16: 5.53 | P16: 1
C17: =VLOOKUP(J2,K5:P22,4) -> Tenkovrstvé podlahové topení v anhydritovém potěru tl. 45mm na tepelné izolaci, P.VS30, 15mm překrytí anhydritem, 2,5 mm linoleum
B19: VI | C19: Měrný chladicí/topný výkon | D19: W/m2 | E19: =IF(J2<10,J7,J9) -> 49.28424227
B21: VII | C21: Měrný průtok vody | D21: kg/(m2h) | E21: =IF(E6<E12,E19*0.861/(E8-E10),IF(E6=E12,0,E19*0.861/(E10-E8))) -> 10.60843315

Sheet Wandheizung und -kühlung
B2: Stěnové topení a chlazení | J2: 3 | K2: Index | L2: Kenn. | N2: Ausführung | O2: C | P2: n
J4: =VLOOKUP(J2,K5:P8,5) -> 4.13
J5: =VLOOKUP(J2,K5:P8,6) -> 1.152 | K5: 1 | L5: K.S15 | M5: Stěnové topení v omítce | N5: Režim topení, instalace v omítnuté stěně, rohož K.S15 v omítce maxit ip22, 11mm tloušťka omítky, 3mm překrytí kapilární rohože, viz technická informace TI-M20 | O5: 4.1 | P5: 1.22
B6: I | C6: Pokojová teplota | D6: °C | E6: 21 | K6: 2 | L6: K.S15 | M6: Stěnové chlazení v omítce | N6: Režim chlazení, instalace v omítnuté stěně, rohož K.S15 v sádrové omítce, 15mm tloušťka, 6,65mm překrytí kapiláry | O6: 6.66 | P6: 1
J7: =J8 -> 58.60707565 | K7: 3 | L7: B.GK12 | M7: Stěnové topení s BEKA elementem B.GK12 | N7: Stěnové topení s BEKA elementem z SDK desky tl. 12,5mm a polystyrenu tl. 30mm, s rohoží K.GG10, viz technické návody TI-K06 | O7: 4.13 | P7: 1.152
B8: II | C8: Teplota přívod | D8: °C | E8: 32 | J8: =IF(E6<E12,J4*(((E10+E8))/2-E6)^J5,IF(E6=E12,0,"Bitte Temperaturen überprüfen !")) -> 58.60707565 | K8: 4 | L8: B.GK12 | M8: Stěnové chlazení s BEKA elementem B.GK12 | N8: Stěnové chlazení s BEKA elementem z SDK desky tl. 12,5mm a polystyrenu tl. 30mm, s rohoží K.GG10, viz technické návody TI-K06 | O8: 3.96 | P8: 1.163
J9: =J10 -> Bitte Temperaturen überprüfen
B10: III | C10: Teplota zpátečka | D10: °C | E10: 30 | G10: Oranžové hodnoty lze měnit ! | J10: =IF(E6>E12,J4*(E6-(E10+E8)/2)^J5,IF(E6=E12,0,"Bitte Temperaturen überprüfen")) -> Bitte Temperaturen überprüfen
B12: IV | C12: Střední teplota vody | D12: °C | E12: =(E10+E8)/2 -> 31
B14: V | C14: Typ instalace
C16: Popis :
C17: =VLOOKUP(J2,K5:P22,4) -> Stěnové topení s BEKA elementem z SDK desky tl. 12,5mm a polystyrenu tl. 30mm, s rohoží K.GG10, viz technické návody TI-K06
B19: VI | C19: Měrný chladicí/topný výkon | D19: W/m2 | E19: =IF(J2=1,J7,IF(J2=2,J9,IF(J2=3,J7,J9))) -> 58.60707565
B21: VII | C21: Měrný průtok vody | D21: kg/(m2h) | E21: =IF(E6<E12,E19*0.861/(E8-E10),IF(E6=E12,0,E19*0.861/(E10-E8))) -> 25.23034607

Sheet offene Decken
B2: Kapilární rohože v otevřené stropní konstrukci | J2: 10 | K2: Index | L2: Kenn. | N2: Ausführung | O2: C | P2: n
J4: =VLOOKUP(J2,K5:P14,5) -> 3.291
J5: =VLOOKUP(J2,K5:P14,6) -> 1.098 | K5: 1 | L5: K.G10 | M5: Zavěšená rohož, viditelná, chlazení | N5: Rohož K.G10 viditelná, napnutá na strop, chlazení | O5: 12.75 | P5: 1.17
B6: I | C6: Pokojová teplota | D6: °C | E6: 27 | K6: 2 | L6: K.G10 | M6: Zavěšená rohož, viditelná, topení | N6: Rohož K.G10 viditelná, napnutá na strop, topení | O6: 4.59 | P6: 1.08
J7: =J8 -> 41.24087607 | K7: 3 | L7: K.GM10 | M7: Nalepená na hliníkovou desku, chlazení | N7: Hliníková deska zn. Metawell, s akustickým vliesem, rohož K.GM10 nalepená | O7: 10.895 | P7: 1.051
B8: II | C8: Teplota přívod | D8: °C | E8: 16 | J8: =IF(E6>E12,J4*(E6-(E10+E8)/2)^J5,IF(E6=E12,0,"Bitte Temperaturen überprüfen !")) -> 41.24087607 | K8: 4 | L8: K.GM10 | M8: Nalepená na hliníkovou desku, topení | N8: Hliníková deska zn. Metawell, s akustickým vliesem, rohož K.GM10 nalepená | O8: 8.68 | P8: 1.077
K9: 5 | L9: K.G10 | M9: Položená nad děrovaný plech, chlazení | N9: Rohož K.G10 natažená nad děrovaný plech, děrování 5mm, po stranách otevřená | O9: 7.25 | P9: 1.17
B10: III | C10: Teplota zpátečka | D10: °C | E10: 18 | G10: Oranžové hodnoty lze měnit ! | K10: 6 | L10: K.G10 | M10: Položená nad děrovaný plech, topení | N10: Rohož K.G10 natažená nad děrovaný plech, děrování 5mm, po stranách otevřená | O10: 3.41 | P10: 1.19
K11: 7 | L11: K.U10 | M11: Nalepená na plechovou desku, chlazení | N11: Plechová deska zn. Van Geel, tloušťka 1,0mm, s akustickým vliesem, 2,4/30% děrování, nalepená rohož K.U10, bez izolace | O11: 6.52 | P11: 1.147
B12: IV | C12: Střední teplota vody | D12: °C | E12: =(E10+E8)/2 -> 17 | J12: =J13 -> Bitte Temperaturen überprüfen | K12: 8 | L12: K.U10 | M12: Nalepená na plechovou desku, topení | N12: Plechová deska zn. Van Geel, tloušťka 1,0mm, s akustickým vliesem, 2,4/30% děrování, nalepená rohož K.U10, bez izolace | O12: 5.815 | P12: 1.167
J13: =IF(E6<E12,J4*(((E10+E8)/2)-E6)^J5,IF(E6=E12,0,"Bitte Temperaturen überprüfen")) -> Bitte Temperaturen überprüfen | K13: 9 | M13: Rohož nad PVC stropní krytinou, chlazení | N13: Rohož nad PVC stropní deskou zn. Barisol, rohož upevněná v meziprostoru | O13: 2.754 | P13: 1.097
B14: V | C14: Typ instalace | K14: 10 | M14: Rohož nad PVC stropní krytinou, s ventilátorem, chlazení | N14: Rohož nad PVC stropní deskou zn. Barisol, rohož upevněná v meziprostoru, s ventilátorem 300m3/h v meziprostoru | O14: 3.291 | P14: 1.098
C16: Popis :
C17: =VLOOKUP(J2,K5:P22,4) -> Rohož nad PVC stropní deskou zn. Barisol, rohož upevněná v meziprostoru, s ventilátorem 300m3/h v meziprostoru
B19: VI | C19: Chladicí/topný výkon | D19: W/m2 | E19: =IF(J2=1,J7,IF(J2=3,J7,IF(J2=5,J7,IF(J2=7,J7,IF(J2=9,J7,IF(J2=10,J7,J12)))))) -> 41.24087607
B21: VII | C21: Průtok vody | D21: kg/(m2h) | E21: =IF(E6<E12,E19*0.861/(E8-E10),IF(E6=E12,0,E19*0.861/(E10-E8))) -> 17.75419715
